bitfinex/quotes_BTCUSD_20250428
["timestamp","ask_amount","ask_price","bid_price","bid_amount"]
[1745798828629,0.6106992,93667.0,93666.0,54.84256494]
[1745798828837,1.70973257,93667.0,93666.0,52.9412001]
[1745798829043,1.63418986,93667.0,93666.0,50.94160623]
[1745798829228,1.58031227,93667.0,93666.0,46.72777528]
[1745798829451,2.08862793,93667.0,93666.0,41.71754827]
[1745798829652,3.37980425,93667.0,93666.0,34.30880728]
[1745798829931,3.37980425,93667.0,93666.0,28.86107845]
[1745798829932,3.45551272,93667.0,93666.0,28.86107845]
[1745798830138,3.51817032,93667.0,93666.0,21.09537162]
[1745798830345,3.78415134,93667.0,93666.0,17.98164994]
[1745798830546,3.89361553,93667.0,93666.0,16.78280139]
[1745798830743,3.89361553,93667.0,93666.0,13.86026273]
[1745798830744,3.81902711,93667.0,93666.0,13.86026273]
[1745798831014,3.77738043,93667.0,93666.0,8.66340524]
[1745798831223,3.8236521,93667.0,93666.0,4.49765279]
[1745798831429,3.88079535,93667.0,93666.0,0.5557648]
[1745798831647,0.54327443,93659.0,93658.0,0.00167651]
[1745798831851,1.08385924,93647.0,93646.0,1.51511043]
[1745798832024,2.20405419,93647.0,93646.0,0.15634326]
[1745798832274,0.0546,93645.0,93643.0,0.23502066]
[1745798832454,0.68676478,93640.0,93639.0,1.53549998]
[1745798832663,0.68676478,93640.0,93632.0,0.03433081]
[1745798832664,0.45801989,93636.0,93632.0,3.86077798]
[1745798832888,1.77318085,93633.0,93632.0,0.59133718]
[1745798833096,1.00914085,93626.0,93625.0,3.43528636]
[1745798833293,1.00914085,93626.0,93618.0,0.0022129]
[1745798833294,0.10834277,93623.0,93622.0,0.08271272]
[1745798833502,0.80914085,93618.0,93617.0,1.71722751]
[1745798833705,0.80914085,93618.0,93617.0,0.70651213]
[1745798833916,0.91314129,93618.0,93617.0,0.16904732]
[1745798834119,0.63347345,93611.0,93610.0,2.41744487]
[1745798834321,0.63347345,93611.0,93610.0,1.16268368]
[1745798834322,2.15160222,93611.0,93610.0,1.16268368]
[1745798834519,1.95909324,93611.0,93610.0,0.56075807]
[1745798834724,2.19806817,93611.0,93610.0,0.56075807]
[1745798834932,2.1755471,93611.0,93610.0,0.50023707]
[1745798835131,0.87288261,93604.0,93603.0,3.61192324]
[1745798835335,5.37783961,93604.0,93603.0,2.46479634]
[1745798835561,0.92588261,93604.0,93603.0,1.39342137]
[1745798835769,0.92588261,93604.0,93603.0,0.14292565]
[1745798835972,0.92588261,93604.0,93596.0,3.54290838]
[1745798836180,0.60914085,93597.0,93596.0,1.6581221]
[1745798836387,1.6763358,93597.0,93596.0,0.31327966]
[1745798836590,0.9946,93590.0,93589.0,2.67245586]
[1745798836742,1.04553596,93590.0,93589.0,2.10518294]
[1745798836942,1.04553596,93590.0,93589.0,2.04321637]
[1745798837149,1.41299447,93590.0,93589.0,1.60522602]
[1745798837349,1.48369997,93590.0,93589.0,1.58122602]
[1745798837528,5.44141973,93590.0,93589.0,1.57862879]
[1745798837728,4.79479797,93590.0,93589.0,1.50102701]
[1745798837930,4.68359509,93590.0,93589.0,1.50102701]
[1745798838131,4.66905424,93590.0,93589.0,1.50102701]
[1745798838317,4.6449261,93590.0,93589.0,1.48102701]
[1745798838564,4.67625284,93590.0,93589.0,1.42846721]
[1745798838767,4.6595261,93590.0,93589.0,1.42846721]
[1745798838968,4.6595261,93590.0,93589.0,1.32861281]
[1745798838969,4.85298781,93590.0,93589.0,1.32861281]
[1745798839175,1.97912345,93590.0,93589.0,0.20952355]
[1745798839387,0.44433407,93586.0,93581.0,0.01]
[1745798839600,0.051,93583.0,93582.0,0.23699291]
[1745798839808,0.46758507,93583.0,93582.0,0.23699291]
[1745798840009,0.46758507,93583.0,93582.0,0.18311498]
[1745798840010,0.48532954,93583.0,93582.0,0.18311498]
[1745798840213,0.53840787,93583.0,93582.0,0.18311498]
[1745798840641,1.27016403,93583.0,93582.0,0.17167029]
[1745798840845,1.30039299,93583.0,93582.0,3.24754886]
[1745798841122,1.27231466,93583.0,93582.0,2.40136458]
[1745798841269,1.32539299,93583.0,93582.0,0.64401003]
[1745798841476,1.00554085,93576.0,93575.0,1.94851221]
[1745798841673,2.11809582,93576.0,93575.0,0.84859253]
[1745798841880,4.7852268,93576.0,93575.0,0.83993762]
[1745798842221,4.86201549,93576.0,93575.0,0.83993762]
[1745798842507,4.82875132,93576.0,93575.0,0.83993762]
[1745798842754,4.52421047,93576.0,93575.0,0.83594719]
[1745798842984,4.50747464,93576.0,93575.0,0.73468541]
[1745798843217,2.07758364,93576.0,93575.0,0.24553392]
[1745798843443,0.60474829,93568.0,93567.0,2.39727533]
[1745798843663,0.55474829,93568.0,93567.0,0.99999766]
[1745798843873,0.63060133,93568.0,93567.0,0.56552267]
[1745798844096,1.00554085,93562.0,93561.0,1.29883744]
[1745798844325,2.17155296,93562.0,93561.0,0.61476723]
[1745798844542,0.62999334,93561.0,93560.0,1.66849588]
[1745798844792,0.46945803,93561.0,93560.0,0.73861616]
[1745798844986,0.46945803,93561.0,93560.0,0.68998119]
[1745798844987,2.54301682,93561.0,93560.0,0.68998119]
[1745798845205,2.56964567,93561.0,93560.0,0.68998119]
[1745798845422,2.51964567,93561.0,93560.0,0.68998119]
[1745798845629,2.51964567,93561.0,93560.0,0.6140991]
[1745798845873,2.57010451,93561.0,93560.0,0.6140991]
[1745798846100,2.17687554,93561.0,93560.0,0.36839881]
[1745798846303,2.16233469,93561.0,93560.0,0.29587793]
[1745798847141,2.35356628,93561.0,93560.0,0.04149142]
[1745798847375,0.591,93554.0,93553.0,3.43537046]
[1745798847549,2.28978785,93554.0,93553.0,3.43537046]
[1745798847760,0.60554085,93554.0,93553.0,1.58462086]
[1745798847978,0.61299936,93554.0,93553.0,0.62870342]
[1745798848196,1.01299936,93554.0,93553.0,0.20074069]
[1745798848400,2.72939836,93554.0,93553.0,0.1672794]
[1745798848565,2.75419132,93554.0,93553.0,0.15808768]
[1745798848767,2.38949847,93554.0,93553.0,0.15808768]
[1745798848929,2.72949847,93554.0,93553.0,0.15808768]
[1745798849126,2.84378861,93554.0,93553.0,0.12228915]
[1745798849327,2.84378861,93554.0,93553.0,0.0111937]
[1745798849574,2.85832946,93554.0,93553.0,0.0111937]
[1745798849778,0.06554085,93548.0,93547.0,0.07317521]
[1745798849990,3.25805865,93548.0,93547.0,0.07317521]
[1745798850216,0.741,93547.0,93546.0,3.49374597]
[1745798850400,2.58213714,93547.0,93546.0,3.49374597]
[1745798850761,2.59667799,93547.0,93546.0,3.41787644]
[1745798850967,2.6041365,93547.0,93546.0,2.97820943]
[1745798851226,2.62336902,93547.0,93546.0,2.97820943]
[1745798851850,2.73437164,93547.0,93546.0,2.92492172]
[1745798852002,2.75637164,93547.0,93546.0,2.92492172]
[1745798852410,2.75637164,93547.0,93546.0,2.91207685]
[1745798852589,0.98179079,93547.0,93546.0,2.85793402]
[1745798852788,0.98179079,93547.0,93546.0,2.87593402]
[1745798853157,0.97354079,93547.0,93546.0,2.87593402]
[1745798853544,0.27727966,93547.0,93546.0,2.87158237]
[1745798853789,0.28727966,93547.0,93546.0,2.86355642]
[1745798853984,0.25927966,93547.0,93546.0,2.86355642]
[1745798854110,0.34173875,93547.0,93546.0,2.83429207]
[1745798854326,0.31973875,93547.0,93546.0,2.83429207]
[1745798854566,0.23302889,93547.0,93546.0,2.88139207]
[1745798854765,0.24702889,93547.0,93546.0,2.8706918]
[1745798855436,0.24702889,93547.0,93546.0,2.7769918]
[1745798855437,0.29702889,93547.0,93546.0,2.7769918]
[1745798855587,0.31156974,93547.0,93546.0,2.7769918]
[1745798855796,0.22911065,93547.0,93546.0,2.74206902]
[1745798855998,0.1645698,93547.0,93546.0,2.66623323]
[1745798856214,0.20215551,93547.0,93546.0,2.65804339]
[1745798856560,0.21615551,93547.0,93546.0,2.65804339]
[1745798856767,0.21615551,93547.0,93546.0,2.64466845]
[1745798856768,0.1645698,93547.0,93546.0,2.64466845]
[1745798856970,0.15215551,93547.0,93546.0,2.64466845]
[1745798857375,0.16415551,93547.0,93546.0,2.64466845]
[1745798857974,0.11635551,93547.0,93546.0,2.6645161]
[1745798858182,0.01358571,93547.0,93546.0,2.58867612]
[1745798858417,0.12047585,93547.0,93546.0,2.58867612]
[1745798858759,0.46047585,93547.0,93546.0,2.56882847]
[1745798858963,0.45889014,93547.0,93546.0,2.56882847]
[1745798859187,0.44689014,93547.0,93546.0,2.56882847]
[1745798859384,0.34,93547.0,93546.0,2.55879883]
[1745798859639,0.14967137,93554.0,93546.0,2.55879883]
[1745798859850,0.05765708,93554.0,93549.0,0.04999784]
[1745798860058,0.001,93572.0,93555.0,0.0484]
[1745798860284,0.06756837,93574.0,93561.0,0.04999784]
[1745798860511,0.06756837,93574.0,93566.0,0.04999784]
[1745798860744,0.053,93584.0,93558.0,0.05965183]
[1745798860745,0.13632627,93576.0,93558.0,0.05965183]
[1745798860969,0.13632627,93576.0,93559.0,0.10689014]
[1745798861260,0.13632627,93576.0,93560.0,0.0221]
[1745798861679,0.053,93584.0,93569.0,0.08547967]
[1745798862139,0.29888798,93581.0,93570.0,0.10689014]
[1745798862380,0.12151897,93582.0,93570.0,0.03109609]
[1745798862611,0.001,93576.0,93570.0,0.03109609]
[1745798862813,0.11831897,93582.0,93570.0,0.03109609]
[1745798863369,0.11831897,93582.0,93570.0,0.001]
[1745798863370,0.001,93581.0,93570.0,0.001]
[1745798863783,0.11831897,93582.0,93549.0,0.01454085]
[1745798864100,0.34,93581.0,93570.0,0.006]
[1745798864302,0.09261391,93577.0,93570.0,0.006]
[1745798864509,0.09261391,93577.0,93551.0,0.01454085]
[1745798864713,0.09261391,93577.0,93558.0,0.08547967]
[1745798865030,0.09261391,93577.0,93559.0,0.10689014]
[1745798865260,0.06316023,93577.0,93560.0,0.01454085]
[1745798865464,0.04412342,93577.0,93562.0,0.01454085]
[1745798865669,0.02126568,93577.0,93564.0,0.01454085]
[1745798865869,0.14837393,93576.0,93568.0,0.08547967]
[1745798866000,0.13218193,93576.0,93569.0,0.10689014]
[1745798866254,0.13218193,93576.0,93548.0,0.00045884]
[1745798866410,0.34,93575.0,93549.0,0.10689014]
[1745798866628,0.13218193,93576.0,93562.0,0.002]
[1745798866856,0.00736759,93575.0,93563.0,0.10689014]
[1745798867261,0.00736759,93575.0,93569.0,0.003]
[1745798867796,0.00736759,93574.0,93569.0,0.003]
[1745798868157,0.00736759,93574.0,93570.0,0.32088]
[1745798868761,0.00736759,93573.0,93570.0,0.32088]
[1745798869617,0.00736759,93572.0,93570.0,0.32088]
[1745798870033,0.00736759,93572.0,93570.0,0.24510038]
[1745798870606,0.00736759,93571.0,93570.0,0.24510038]
[1745798871405,0.06977004,93571.0,93570.0,0.24510038]
[1745798871603,0.06240245,93571.0,93570.0,0.24510038]
[1745798871801,0.06240245,93571.0,93570.0,0.30902326]
[1745798872037,0.02665401,93571.0,93570.0,0.30902326]
[1745798872206,0.00062319,93572.0,93571.0,0.01454085]
[1745798872404,0.08166788,93604.0,93571.0,0.12143099]
[1745798872607,0.00736759,93603.0,93573.0,0.01454085]
[1745798872827,0.00736759,93603.0,93574.0,0.10689014]
[1745798873035,0.08166788,93604.0,93582.0,0.10689014]
[1745798873231,0.08166788,93604.0,93583.0,0.04805604]
[1745798873402,0.08166788,93604.0,93584.0,0.10689014]
[1745798873622,0.09066788,93604.0,93584.0,0.10689014]
[1745798873820,0.1531474,93590.0,93584.0,0.10689014]
[1745798874021,0.1531474,93590.0,93584.0,0.04005692]
[1745798874220,0.1531474,93590.0,93584.0,0.0401947]
[1745798875193,0.1531474,93590.0,93584.0,0.00013778]
[1745798875716,0.1551474,93590.0,93584.0,0.00013778]
[1745798876364,0.34,93589.0,93584.0,0.00013778]
[1745798877814,0.002,93590.0,93570.0,0.16885731]
[1745798877986,0.0021376,93590.0,93572.0,0.08547967]
[1745798878187,0.0001376,93590.0,93573.0,0.10689014]
[1745798878388,0.002,93589.0,93573.0,0.10689014]
[1745798878642,0.002,93589.0,93574.0,0.01454085]
[1745798878810,0.07905725,93586.0,93575.0,0.10689014]
[1745798879088,0.07905725,93586.0,93576.0,0.0375768]
[1745798879292,0.07905725,93586.0,93577.0,0.10689014]
[1745798879729,0.07905725,93586.0,93577.0,0.10685014]
[1745798879980,0.08005725,93586.0,93577.0,0.10685014]
[1745798880877,0.04730685,93585.0,93577.0,0.10685014]
[1745798881777,0.04730685,93585.0,93571.0,0.00213734]
[1745798881778,0.02915949,93585.0,93583.0,0.01454085]
[1745798881978,0.02915949,93585.0,93582.0,0.21371481]
[1745798881979,0.0001376,93590.0,93589.0,0.01454085]
[1745798882184,0.0001376,93590.0,93589.0,0.10689014]
[1745798882807,0.0001376,93590.0,93589.0,0.04006136]
[1745798882967,0.0001376,93590.0,93577.0,0.00213695]
[1745798883166,0.0001376,93590.0,93578.0,0.10689014]
[1745798883595,0.0001376,93590.0,93578.0,0.10789014]
[1745798884238,0.0001376,93590.0,93578.0,0.001]
[1745798884384,0.0011376,93590.0,93578.0,0.001]
[1745798884885,0.0001376,93590.0,93579.0,0.10689014]
[1745798885165,0.0011376,93590.0,93580.0,0.01078901]
[1745798885318,0.0011376,93590.0,93581.0,0.10689014]
[1745798885499,0.00740706,93589.0,93581.0,0.10689014]
[1745798886330,0.00740706,93588.0,93581.0,0.10689014]
[1745798886540,0.00740706,93588.0,93578.0,0.001]
[1745798886739,0.00740706,93588.0,93579.0,0.10689014]
[1745798887196,0.00740706,93587.0,93579.0,0.06393418]
[1745798887333,0.00740706,93587.0,93578.0,0.001]
[1745798887774,0.00740706,93586.0,93578.0,0.001]
[1745798888544,0.00740706,93585.0,93578.0,0.001]
[1745798889401,0.06,93580.0,93578.0,0.001]
[1745798889854,0.44689014,93579.0,93578.0,0.001]
[1745798890057,0.50713099,93579.0,93578.0,0.001]
[1745798890256,0.53673083,93579.0,93578.0,0.001]
[1745798890431,0.34,93578.0,93570.0,0.16885731]
[1745798890635,0.34,93576.0,93570.0,0.16885731]
[1745798890885,0.05410706,93579.0,93570.0,0.16885731]
[1745798890886,0.34,93574.0,93570.0,0.16885731]
[1745798891088,0.14389704,93573.0,93570.0,0.15883138]
[1745798891289,0.02959984,93572.0,93570.0,0.15883138]
[1745798891525,0.10689014,93571.0,93570.0,0.15883138]
[1745798891733,0.13648998,93571.0,93570.0,0.15883138]
[1745798891877,0.14389704,93571.0,93570.0,0.15883138]
[1745798892480,0.48389704,93571.0,93570.0,0.15883138]
[1745798893270,0.48389704,93571.0,93570.0,0.15131084]
[1745798894063,0.49843789,93571.0,93570.0,0.15131084]
[1745798894464,0.48389704,93571.0,93570.0,0.15131084]
[1745798894641,0.48689704,93571.0,93570.0,0.15131084]
[1745798895462,0.48689704,93571.0,93570.0,0.08445721]
[1745798896645,0.48689704,93571.0,93546.0,2.34519883]
[1745798896646,0.0475,93557.0,93546.0,2.34519883]
[1745798896861,0.71243099,93547.0,93546.0,2.03579883]
[1745798897071,2.32651089,93547.0,93546.0,1.98042883]
[1745798897203,2.84428489,93547.0,93546.0,1.98042883]
[1745798897645,2.84428489,93547.0,93546.0,1.93362883]
[1745798897991,2.84442239,93547.0,93546.0,1.92359926]
[1745798898391,2.84442239,93547.0,93546.0,1.89959926]
[1745798898577,2.92546239,93547.0,93546.0,1.89219926]
[1745798898774,2.92546239,93547.0,93546.0,1.77178686]
[1745798899017,2.8811253,93547.0,93546.0,1.77178686]
[1745798899229,2.83899132,93547.0,93546.0,1.55721686]
[1745798899450,2.85699132,93547.0,93546.0,1.55721686]
[1745798899600,2.85699132,93547.0,93546.0,1.55340883]
[1745798899812,2.85699132,93547.0,93546.0,1.50087812]
[1745798900214,2.85699132,93547.0,93546.0,1.44385507]
[1745798900432,1.17274432,93547.0,93546.0,1.44385507]
[1745798900637,1.15474432,93547.0,93546.0,1.44385507]
[1745798900838,1.17374432,93547.0,93546.0,1.44385507]
[1745798901509,2.89648726,93547.0,93546.0,1.33958934]
[1745798901752,3.62148726,93547.0,93546.0,1.33958934]
[1745798902151,3.30421057,93547.0,93546.0,1.33958934]
[1745798902353,3.29706972,93547.0,93546.0,1.33958934]
[1745798902514,2.57061057,93547.0,93546.0,1.33958934]
[1745798902710,2.97161057,93547.0,93546.0,1.33958934]
[1745798902921,3.31161057,93547.0,93546.0,1.33958934]
[1745798903116,2.97161057,93547.0,93546.0,1.33958934]
[1745798903317,2.95706972,93547.0,93546.0,1.33958934]
[1745798903544,3.26948898,93547.0,93546.0,1.33958934]
[1745798903752,3.31948898,93547.0,93546.0,1.33958934]
[1745798903974,3.34348898,93547.0,93546.0,1.33958934]
[1745798904207,3.34348898,93547.0,93546.0,1.26371267]
[1745798904320,3.31948898,93547.0,93546.0,1.25367764]
[1745798904525,3.33402983,93547.0,93546.0,1.25367764]
[1745798904769,3.31432692,93547.0,93546.0,1.25367764]
[1745798905184,3.33532692,93547.0,93546.0,1.25367764]
[1745798906242,3.41785503,93547.0,93546.0,1.25367764]
[1745798906659,3.39685503,93547.0,93546.0,0.44048602]
[1745798906864,0.45554085,93544.0,93532.0,0.00644041]
[1745798907105,0.0530703,93545.0,93539.0,3.48699687]
[1745798907106,1.00554085,93540.0,93539.0,3.48699687]
[1745798907366,3.88579124,93540.0,93539.0,3.48699687]
[1745798907613,4.29639124,93540.0,93539.0,3.48699687]
[1745798907897,4.32331705,93540.0,93539.0,3.48699687]
[1745798908073,5.02331705,93540.0,93539.0,3.48699687]
[1745798908717,5.03071705,93540.0,93539.0,3.45484687]
[1745798908880,5.03071705,93540.0,93539.0,3.38008687]
[1745798909085,5.12651321,93540.0,93539.0,3.38008687]
[1745798909485,5.15143374,93540.0,93539.0,3.33707118]
[1745798909726,5.17543374,93540.0,93539.0,3.33707118]
[1745798910138,5.11875705,93540.0,93539.0,3.33707118]
[1745798910339,5.15051321,93540.0,93539.0,3.33707118]
[1745798910488,5.08943875,93540.0,93539.0,3.32703386]
[1745798910892,5.08203875,93540.0,93539.0,3.32703386]
[1745798911093,4.67143875,93540.0,93539.0,3.32703386]
[1745798911316,4.33143875,93540.0,93539.0,3.32703386]
[1745798911522,3.6215439,93540.0,93539.0,3.32703386]
[1745798911729,3.0070479,93540.0,93539.0,3.32703386]
[1745798912098,0.66556495,93540.0,93539.0,3.32703386]
[1745798912277,0.77597213,93540.0,93539.0,3.32703386]
[1745798912652,0.75197213,93540.0,93539.0,3.32703386]
[1745798912856,0.75197213,93540.0,93539.0,3.27444757]
[1745798913055,0.75645338,93540.0,93539.0,3.27444757]
[1745798913466,1.07245338,93540.0,93539.0,3.27444757]
[1745798913632,1.08699423,93540.0,93539.0,3.27444757]
[1745798914045,1.10399423,93540.0,93539.0,3.27444757]
[1745798914507,0.45724523,93540.0,93539.0,3.27844757]
[1745798914717,0.24170438,93540.0,93539.0,3.27844757]
[1745798914924,0.24170438,93540.0,93539.0,3.32764757]
[1745798915139,0.17871646,93540.0,93539.0,3.32764757]
[1745798915268,0.1713094,93540.0,93539.0,3.32764757]
[1745798915680,0.1543094,93540.0,93539.0,3.32764757]
[1745798915880,0.1543094,93540.0,93539.0,3.29419418]
[1745798916066,0.1723094,93540.0,93539.0,3.29419418]
[1745798916261,0.17971646,93540.0,93539.0,3.29419418]
[1745798916612,0.17971646,93540.0,93539.0,3.24499418]
[1745798916613,0.91751831,93540.0,93539.0,3.24499418]
[1745798916821,0.53025731,93540.0,93539.0,3.24499418]
[1745798917989,0.48283805,93540.0,93539.0,3.24499418]
[1745798918599,1.23865905,93540.0,93539.0,3.24499418]
[1745798919007,1.19888805,93540.0,93539.0,3.24499418]
[1745798919826,1.22826207,93540.0,93539.0,3.2399772]
[1745798920026,1.21426207,93540.0,93539.0,3.2399772]
[1745798920341,1.23526207,93540.0,93539.0,3.2399772]
[1745798920753,1.15083507,93540.0,93539.0,3.2399772]
[1745798920977,0.71921207,93540.0,93539.0,3.2399772]
[1745798921152,0.6752972,93540.0,93539.0,3.2399772]
[1745798921356,0.3352972,93540.0,93539.0,3.2399772]
[1745798922180,0.3142972,93540.0,93539.0,3.2399772]
[1745798922573,0.3322972,93540.0,93539.0,3.2399772]
[1745798923005,0.16143396,93540.0,93539.0,3.2399772]
[1745798923219,0.15743396,93540.0,93539.0,3.2863772]
[1745798923416,0.17143396,93540.0,93539.0,3.2863772]
[1745798923678,0.17143396,93540.0,93539.0,3.23381732]
[1745798923820,0.15743396,93540.0,93539.0,3.23381732]
[1745798924022,0.16843396,93540.0,93539.0,3.23381732]
[1745798924434,0.06554382,93540.0,93539.0,3.23381732]
[1745798924666,0.01874382,93540.0,93539.0,3.28301732]
[1745798925029,0.0001375,93547.0,93539.0,3.28301732]
[1745798925237,0.04929981,93544.0,93539.0,3.28301732]
[1745798925441,0.34,93542.0,93539.0,3.28301732]
[1745798925633,0.012,93540.0,93539.0,3.28301732]
[1745798926043,0.34,93542.0,93539.0,3.2400229]
[1745798926634,0.06229981,93544.0,93539.0,3.2400229]
[1745798927082,0.04929981,93544.0,93539.0,3.2400229]
[1745798928488,0.001,93542.0,93539.0,3.2400229]
[1745798929075,0.04929981,93544.0,93539.0,3.2400229]
[1745798929282,0.34,93543.0,93539.0,3.2400229]
[1745798929712,0.0001375,93547.0,93539.0,3.2400229]
[1745798930241,0.0001375,93547.0,93539.0,3.2420229]
[1745798930665,0.0001375,93547.0,93539.0,3.34891304]
[1745798930867,0.00557045,93592.0,93540.0,0.10689014]
[1745798931091,0.00557045,93592.0,93541.0,0.049]
[1745798931224,0.0598506,93580.0,93543.0,0.049]
[1745798931424,0.10689014,93579.0,93544.0,0.10689014]
[1745798931744,0.0598506,93580.0,93545.0,0.0497]
[1745798932070,0.0598506,93580.0,93547.0,0.0453]
[1745798932281,0.07898659,93591.0,93556.0,0.0472]
[1745798932486,0.07898659,93591.0,93558.0,0.0472]
[1745798932690,0.07898659,93591.0,93561.0,0.01454085]
[1745798932894,0.07898659,93591.0,93563.0,0.01454085]
[1745798933111,0.07898659,93591.0,93564.0,0.10689014]
[1745798934665,0.0008506,93585.0,93564.0,0.10689014]
[1745798934863,0.0542506,93596.0,93565.0,0.0481]
[1745798935144,0.07898659,93626.0,93594.0,0.08547967]
[1745798935347,0.34,93616.0,93596.0,0.0481]
[1745798935560,0.0534,93622.0,93596.0,0.0481]
[1745798936139,0.34,93616.0,93596.0,0.0481]
[1745798936557,0.34013824,93616.0,93596.0,0.0481]
[1745798936760,0.00013824,93616.0,93596.0,0.0481]
[1745798936902,0.34013824,93616.0,93596.0,0.0481]
[1745798937104,0.34,93614.0,93596.0,0.0481]
[1745798937314,0.34,93612.0,93596.0,0.0481]
[1745798937516,0.44689014,93612.0,93596.0,0.0481]
[1745798937936,0.0073744,93611.0,93596.0,0.0481]
[1745798938370,0.0073744,93611.0,93596.0,0.01468745]
[1745798938768,0.0073744,93610.0,93596.0,0.01468745]
[1745798939691,0.0073744,93609.0,93596.0,0.01668745]
[1745798940510,0.0073744,93608.0,93596.0,0.01668745]
[1745798941261,0.0073744,93608.0,93588.0,0.02342386]
[1745798941586,0.0073744,93607.0,93596.0,0.001]
[1745798942148,0.0073744,93606.0,93596.0,0.001]
[1745798942354,0.0073744,93606.0,93588.0,0.02342386]
[1745798942560,0.10689014,93605.0,93588.0,0.02342386]
[1745798942759,0.0073744,93606.0,93588.0,0.02342386]
[1745798942985,0.3473744,93605.0,93588.0,0.02542386]
[1745798943673,0.0073744,93604.0,93591.0,0.08547967]
[1745798943867,0.0073744,93604.0,93603.0,0.08547967]
[1745798944074,0.0329562,93635.0,93604.0,0.045]
[1745798944298,0.0008502,93635.0,93605.0,0.42769014]
[1745798945338,0.0038502,93627.0,93605.0,0.42769014]
[1745798945791,0.0008502,93627.0,93605.0,0.42769014]
[1745798946202,0.0008502,93627.0,93605.0,0.43169014]
[1745798946822,0.10689014,93626.0,93605.0,0.3248]
[1745798947426,0.0008502,93627.0,93606.0,0.13938396]
[1745798947622,0.0008502,93627.0,93606.0,0.10689014]
[1745798948785,0.0008502,93627.0,93606.0,0.10889014]
[1745798949408,0.0008502,93627.0,93608.0,0.08547967]
[1745798949617,0.0008502,93627.0,93609.0,0.10689014]
[1745798951221,0.0008502,93627.0,93605.0,0.3208]
[1745798951763,0.0008502,93627.0,93609.0,0.001]
[1745798952225,0.10689014,93626.0,93609.0,0.001]
[1745798953425,0.10689014,93626.0,93605.0,0.3208]
[1745798954261,0.02948169,93625.0,93605.0,0.3208]
[1745798954504,0.34,93623.0,93605.0,0.3208]
[1745798954709,0.34,93621.0,93605.0,0.3208]
[1745798954879,0.06,93617.0,93605.0,0.3208]
[1745798955083,0.4,93617.0,93605.0,0.3208]
[1745798956611,0.02954837,93616.0,93605.0,0.3208]
[1745798957013,0.00740615,93615.0,93605.0,0.3208]
[1745798957444,0.0295668,93614.0,93605.0,0.3208]
[1745798957585,0.00740615,93613.0,93605.0,0.3208]
[1745798958507,0.02958352,93612.0,93605.0,0.3208]
[1745798958714,0.00740615,93611.0,93605.0,0.3208]
[1745798959114,0.0295872,93610.0,93605.0,0.3208]
[1745798959520,0.0295872,93610.0,93605.0,0.25397303]
[1745798959737,0.00740615,93609.0,93607.0,0.08547967]
[1745798960492,0.00740615,93609.0,93605.0,0.25397303]
[1745798960740,0.00740615,93608.0,93605.0,0.25397303]
[1745798961071,0.00740615,93608.0,93607.0,0.003]
[1745798961492,0.00740615,93608.0,93605.0,0.25397303]
[1745798961692,0.00740615,93608.0,93607.0,0.10689014]
[1745798962813,0.00740615,93608.0,93605.0,0.25797303]
[1745798962980,0.00740615,93608.0,93605.0,0.36186317]
[1745798963177,0.06,93617.0,93607.0,0.003]
[1745798963620,0.02967711,93616.0,93605.0,0.25497303]
[1745798964023,0.02967711,93616.0,93605.0,0.25897303]
[1745798964392,0.45433364,93615.0,93605.0,0.25897303]
[1745798964591,0.45433364,93615.0,93605.0,0.25497303]
[1745798964592,0.04421796,93614.0,93605.0,0.25497303]
[1745798964827,0.34,93612.0,93605.0,0.25697303]
[1745798965035,0.34,93610.0,93605.0,0.25697303]
[1745798965255,0.34,93608.0,93605.0,0.25196106]
[1745798965460,0.35454085,93606.0,93605.0,0.2444431]
[1745798965677,0.46143099,93606.0,93605.0,0.21103616]
[1745798965893,0.8106531,93606.0,93605.0,0.003]
[1745798966070,0.6933891,93606.0,93605.0,0.001]
[1745798966511,0.35454085,93600.0,93595.0,0.21647418]
[1745798966721,0.35454085,93596.0,93595.0,0.21647418]
[1745798966930,0.4911081,93596.0,93595.0,0.21647418]
[1745798967335,0.8910536,93596.0,93595.0,0.21647418]
[1745798967816,0.7789046,93596.0,93595.0,0.21647418]
[1745798967956,0.7297021,93596.0,93595.0,0.21647418]
[1745798968610,0.01454085,93594.0,93567.0,0.0004242]
[1745798968818,0.12143099,93568.0,93567.0,0.0004242]
[1745798969013,0.2045081,93568.0,93567.0,0.0004242]
[1745798969425,0.2087911,93568.0,93567.0,0.0004242]
[1745798969628,0.2162346,93568.0,93567.0,0.0004242]
[1745798969823,0.6792286,93568.0,93567.0,0.0004242]
[1745798970026,1.1115286,93568.0,93567.0,0.0004242]
[1745798970178,1.11263179,93568.0,93567.0,0.0004242]
[1745798970397,0.96523743,93568.0,93567.0,0.0004242]
[1745798970710,0.35454085,93558.0,93551.0,0.004]
[1745798970911,0.35454085,93554.0,93551.0,0.004]
[1745798971112,0.34,93552.0,93551.0,0.004]
[1745798971319,0.47656725,93552.0,93551.0,0.004]
[1745798971727,0.49633089,93552.0,93551.0,0.004]
[1745798972503,0.50377439,93552.0,93551.0,0.004]
[1745798973446,0.50377439,93552.0,93541.0,0.07987315]
[1745798973645,0.34,93550.0,93541.0,0.07987315]
[1745798973850,0.34,93548.0,93541.0,0.07987315]
[1745798974098,0.34,93546.0,93541.0,0.07987315]
[1745798974308,0.01976364,93545.0,93541.0,0.07987315]
[1745798974510,0.01976364,93545.0,93532.0,0.00644041]
[1745798974927,0.0074435,93544.0,93532.0,0.00644041]
[1745798975371,0.34,93542.0,93532.0,0.00644041]
[1745798975520,0.34,93540.0,93532.0,0.00644041]
[1745798975720,0.44689014,93540.0,93532.0,0.00644041]
[1745798976083,0.46665378,93540.0,93532.0,0.00644041]
[1745798976201,0.47409728,93540.0,93532.0,0.00644041]
[1745798976604,0.51343774,93540.0,93532.0,0.00644041]
[1745798977520,0.48392821,93540.0,93532.0,0.00644041]
[1745798977948,0.47409728,93540.0,93532.0,0.00644041]
[1745798978557,0.47609728,93540.0,93539.0,3.08787145]
[1745798981666,0.52354077,93540.0,93539.0,3.08787145]
[1745798982391,0.52354077,93540.0,93539.0,3.04487156]
[1745798982606,0.07665063,93540.0,93539.0,3.04487156]
[1745798983229,0.07465063,93540.0,93539.0,3.04487156]
[1745798983644,0.04744349,93540.0,93539.0,3.04487156]
[1745798985126,0.04744349,93540.0,93539.0,3.04687156]
[1745798985545,0.49433363,93540.0,93539.0,3.04687156]
[1745798986103,0.50177713,93540.0,93539.0,3.04687156]
[1745798986458,0.50177713,93540.0,93539.0,3.04487156]
[1745798987320,0.45433364,93540.0,93539.0,3.04487156]
[1745798987905,0.3474435,93540.0,93539.0,3.04487156]
[1745798988125,0.3474435,93540.0,93539.0,3.01143094]
[1745798988330,0.3484435,93540.0,93539.0,3.01143094]
[1745798989034,0.3474435,93540.0,93539.0,3.01143094]
[1745798989409,0.3474435,93540.0,93539.0,3.01243094]
[1745798989897,0.3474435,93540.0,93539.0,3.01143094]